bitfinex/quotes_ETHUSD_20250622
["timestamp","ask_amount","ask_price","bid_price","bid_amount"]
[1750599476961,10.759,2200.5,2200.4,4.54462824]
[1750599477159,23.572,2200.5,2200.4,4.54462824]
[1750599477397,23.571,2200.5,2200.4,4.54462824]
[1750599477564,10.911,2200.8,2199.8,1.5172]
[1750599477758,10.911,2200.8,2200.7,14.54400872]
[1750599478004,10.911,2201.6,2201.5,4.54235748]
[1750599478488,5.16942802,2201.6,2201.5,4.54235748]
[1750599479067,1.6594,2201.5,2200.7,4.54394102]
[1750599479300,0.55,2201.3,2199.7,4.54601807]
[1750599479609,0.04548029,2201.2,2199.8,0.04545159]
[1750599479763,12.805,2201.1,2201.0,4.54319724]
[1750599480218,12.805,2201.1,2199.5,4.54648783]
[1750599480219,12.805,2201.1,2200.3,0.04544148]
[1750599480499,1.6594,2200.3,2199.6,0.04545394]
[1750599480734,15.21728029,2201.0,2196.9,1.5221]
[1750599480735,1.6594,2199.2,2196.9,1.5221]
[1750599480862,0.55,2198.6,2197.0,4.55158934]
[1750599481214,0.55,2198.6,2196.4,4.55274494]
[1750599481215,1.6594,2198.3,2196.6,0.04551439]
[1750599481366,0.04548029,2198.2,2196.3,4.55311205]
[1750599481568,0.2221,2198.7,2198.5,4.54855583]
[1750599481760,1.6594,2200.5,2200.2,4.54504135]
[1750599481967,0.25459119,2202.0,2200.2,14.54504135]
[1750599482297,0.25459119,2202.0,2200.9,10.0]
[1750599482298,1.91399119,2202.0,2200.9,10.0]
[1750599482511,1.6594,2201.0,2198.1,1.5221]
[1750599482661,10.0,2200.7,2198.5,0.55]
[1750599482862,10.0,2200.7,2198.1,6.07139421]
[1750599482863,10.0,2200.4,2198.6,0.04543386]
[1750599483098,4.54663033,2199.5,2198.5,4.54835112]
[1750599483301,10.5,2200.2,2198.4,0.46368012]
[1750599483302,1.6594,2199.2,2198.4,0.46368012]
[1750599483501,12.789,2199.1,2197.2,1.5221]
[1750599484002,0.55,2198.8,2197.2,1.5221]
[1750599484205,1.6594,2198.9,2198.8,4.54793523]
[1750599484536,0.96627407,2200.7,2198.8,0.0454949]
[1750599484537,10.92,2200.3,2198.8,0.0454949]
[1750599484820,1.6594,2200.1,2197.6,4.5502784]
[1750599484977,1.6594,2200.1,2199.3,4.54671033]
[1750599485181,1.6594,2200.1,2197.6,1.5221]
[1750599485182,12.787,2200.0,2197.6,1.5221]
[1750599485422,0.55,2199.7,2198.9,4.54752787]
[1750599485593,1.6594,2199.9,2199.4,4.54669455]
[1750599485777,1.6594,2199.9,2199.8,4.5458678]
[1750599485984,0.23707544,2200.7,2200.6,4.54421521]
[1750599486183,1.15014803,2202.3,2201.9,4.54153231]
[1750599486384,0.23701852,2202.2,2201.7,4.54174294]
[1750599486604,0.23701852,2202.2,2200.6,4.54405917]
[1750599486815,10.92,2202.3,2200.7,4.54393253]
[1750599486816,1.6594,2201.9,2200.7,4.54393253]
[1750599486981,1.6594,2201.9,2200.2,4.54499773]
[1750599487180,1.6594,2201.7,2199.2,4.54710803]
[1750599487385,10.92,2202.3,2199.3,0.0454529]
[1750599487386,1.6594,2201.3,2199.3,0.0454529]
[1750599487620,23.697,2201.2,2199.3,0.55]
[1750599487824,23.697,2201.2,2201.1,4.54318295]
[1750599488034,10.918,2201.2,2201.1,4.54318295]
[1750599488525,10.918,2201.2,2200.4,10.0]
[1750599488826,10.918,2201.2,2201.1,4.54318295]
[1750599488827,12.0098,2201.2,2201.1,4.54318295]
[1750599489024,1.6594,2201.8,2201.7,4.54194486]
[1750599489235,0.05,2202.0,2201.7,9.08388972]
[1750599489421,0.05,2202.0,2201.9,4.54153231]
[1750599489724,0.05,2202.0,2200.8,10.0]
[1750599489932,0.05,2202.0,2201.9,4.54153231]
[1750599490737,0.05,2202.0,2201.3,10.0]
[1750599490738,0.05,2202.0,2200.9,10.0]
[1750599490884,12.764,2201.9,2201.2,4.54297655]
[1750599491084,12.764,2201.9,2201.8,4.54173857]
[1750599491290,0.05,2202.0,2201.9,4.54153231]
[1750599491525,0.05,2202.0,2201.9,14.58694106]
[1750599491827,0.05,2202.0,2201.0,4.54333765]
[1750599491828,4.5419024,2201.8,2201.0,4.54333765]
[1750599492059,1.6594,2201.3,2199.7,4.54607446]
[1750599492356,1.6594,2201.3,2201.2,4.54297655]
[1750599492649,10.916,2201.7,2201.6,4.54215116]
[1750599493196,10.916,2201.7,2200.4,4.54462824]
[1750599493439,0.55,2201.6,2199.9,4.5455868]
[1750599493598,1.1466,2201.5,2200.0,0.04544396]
[1750599493799,1.1466,2201.5,2198.1,0.51568116]
[1750599493800,0.55,2201.2,2200.5,4.54429963]
[1750599494035,12.753,2201.1,2199.8,4.5458678]
[1750599494233,12.753,2201.1,2199.9,0.04545115]
[1750599494538,12.753,2201.1,2200.2,4.54495838]
[1750599494539,6.75285194,2201.0,2200.2,4.54495838]
[1750599494739,0.55,2200.8,2200.5,4.54439022]
[1750599494912,1.95058519,2200.9,2199.8,4.54584818]
[1750599495103,1.6594,2201.0,2200.9,4.5435958]
[1750599495299,1.6594,2201.4,2199.9,1.5221]
[1750599495512,1.6594,2201.4,2201.3,4.54277018]
[1750599495912,1.6594,2201.4,2200.2,4.54483585]
[1750599495913,1.6594,2201.4,2200.0,4.54545454]
[1750599496118,1.6594,2201.4,2201.0,4.54327108]
[1750599496454,1.6594,2201.4,2200.3,4.54483479]
[1750599496604,1.6594,2201.4,2200.2,10.0]
[1750599496804,1.6594,2201.4,2200.0,4.54545454]
[1750599496805,0.55,2201.3,2200.1,4.54514014]
[1750599497047,1.6594,2201.4,2201.0,4.54327021]
[1750599497207,1.6594,2201.4,2201.3,4.54277018]
[1750599497745,0.55,2201.3,2199.5,1.5498]
[1750599497904,0.55,2200.6,2199.0,1.5498]
[1750599498102,23.656,2200.5,2199.8,4.54570598]
[1750599498343,23.656,2200.5,2200.4,4.54462824]
[1750599498344,10.916,2200.5,2200.4,4.54462824]
[1750599498541,10.916,2200.5,2199.0,11.5498]
[1750599498542,0.55,2200.4,2200.0,4.54531502]
[1750599498752,1.1466,2200.3,2199.1,4.54731481]
[1750599498914,0.55,2200.4,2199.4,4.54653651]
[1750599499121,0.55,2200.4,2199.8,4.54574564]
[1750599499342,0.55,2200.2,2199.8,4.54574564]
[1750599499584,0.14221075,2200.1,2199.9,4.5456523]
[1750599499723,0.55,2200.4,2199.4,4.54668853]
[1750599499917,0.55,2200.4,2197.4,2.25339853]
[1750599499918,0.05,2202.0,2199.6,1.5712]
[1750599500123,12.5092,2201.9,2201.4,4.54236757]
[1750599500324,12.5092,2201.9,2201.5,4.54229134]
[1750599500565,0.14210139,2201.8,2200.3,10.0]
[1750599500722,0.14210139,2201.8,2200.6,4.54421521]
[1750599500922,2.54353014,2201.8,2201.1,4.54306706]
[1750599501127,2.54353014,2201.8,2200.0,14.54545454]
[1750599501361,2.54353014,2201.8,2200.3,10.0]
[1750599501563,1.5912,2201.7,2201.0,4.54321468]
[1750599501772,0.55,2201.6,2200.3,10.0]
[1750599501972,0.14212718,2201.5,2201.4,4.54256382]
[1750599502136,12.727,2201.5,2199.7,1.5712]
[1750599502461,1.5912,2201.7,2200.6,4.54406007]
[1750599502462,17.41078002,2201.4,2200.6,4.54406007]
[1750599502623,1.5912,2201.3,2199.8,14.5458678]
[1750599502824,0.55,2200.8,2199.8,4.5457596]
[1750599503024,11.05915899,2200.7,2199.3,1.5712]
[1750599503299,10.917,2200.7,2200.6,4.54421521]
[1750599503771,0.55,2200.6,2199.2,4.54710803]
[1750599503923,0.14214626,2200.5,2200.4,4.54462824]
[1750599504124,23.637,2200.7,2200.1,4.54521242]
[1750599504338,0.69217564,2200.6,2200.0,4.54543146]
[1750599504539,1.5186,2200.3,2199.0,4.5475216]
[1750599504749,1.5186,2200.3,2198.7,4.54795974]
[1750599504750,0.55,2200.1,2199.6,4.54616912]
[1750599505031,1.5186,2199.5,2198.5,4.54855583]
[1750599505225,10.917,2199.5,2198.4,1.574]
[1750599505547,10.917,2199.5,2199.4,4.54669455]
[1750599506438,1.5186,2200.1,2200.0,4.54545454]
[1750599506640,10.918,2200.3,2200.2,4.54504135]
[1750599506964,10.918,2200.3,2199.9,4.54549207]
[1750599507188,1.91714874,2200.2,2198.8,1.574]
[1750599507349,10.918,2200.3,2200.2,4.54504135]
[1750599507748,10.918,2200.3,2200.2,14.54504135]
[1750599507984,12.4366,2201.1,2201.0,4.54338936]
[1750599508161,10.918,2201.1,2201.0,4.54338936]
[1750599508481,1.6051,2201.8,2201.7,4.54194486]
[1750599508682,10.919,2201.9,2201.8,4.54173857]
[1750599508984,0.05,2202.0,2201.9,4.54153231]
[1750599509184,0.05,2202.0,2201.9,14.58694243]
[1750599509346,0.05,2202.0,2201.9,14.54153231]
[1750599509963,0.05,2202.0,2201.9,15.09153231]
[1750599510166,0.05,2202.0,2201.9,16.67143231]
[1750599510363,10.919,2203.5,2203.4,4.53844059]
[1750599511055,1.6051,2204.3,2204.2,4.53679339]
[1750599511299,4.53697938,2204.2,2203.3,4.53863576]
[1750599511511,0.61420794,2204.1,2203.7,4.53764188]
[1750599511814,10.919,2204.7,2204.4,4.53638178]
[1750599512400,10.919,2204.7,2202.6,4.5400265]
[1750599512599,10.919,2204.7,2204.4,4.53638178]
[1750599512812,0.1,2205.0,2204.4,14.53638178]
[1750599513364,1.6051,2204.4,2203.3,4.53864657]
[1750599513588,12.684,2204.7,2204.4,4.53638178]
[1750599514208,1.6051,2204.8,2204.4,4.53638178]
[1750599514587,1.6051,2204.8,2204.2,4.53678026]
[1750599514786,12.672,2204.4,2203.2,4.53885257]
[1750599514990,1.6051,2204.8,2204.2,4.53679339]
[1750599515345,23.2265,2204.9,2204.4,14.53638178]
[1750599515346,10.5555,2204.9,2204.4,14.53638178]
[1750599516904,10.5555,2204.9,2204.8,4.53555878]
[1750599517105,2.80926294,2204.9,2204.8,16.14685878]
[1750599517319,0.52813666,2204.9,2204.8,15.08555878]
[1750599517525,0.1,2205.0,2204.9,14.53535307]
[1750599518107,12.755,2205.0,2203.6,4.53802868]
[1750599518309,12.755,2205.0,2203.5,1.519]
[1750599518310,1.2755,2204.9,2204.8,4.53555878]
[1750599518532,12.653,2204.9,2203.5,1.519]
[1750599518822,0.1,2205.0,2204.9,4.53535307]
[1750599518988,12.752,2205.0,2203.6,4.53802868]
[1750599519189,12.65,2204.9,2204.7,4.53568376]
[1750599519393,12.65,2204.9,2203.6,0.45821869]
[1750599519616,0.55,2204.8,2203.5,1.519]
[1750599519817,0.55,2204.6,2203.3,4.53847291]
[1750599520023,23.552,2204.5,2203.0,1.519]
[1750599520227,0.55,2204.2,2202.6,4.54008898]
[1750599520428,0.55,2204.2,2203.2,4.53875982]
[1750599520596,0.55,2204.2,2202.5,1.519]
[1750599520597,0.55,2204.0,2203.0,4.53911859]
[1750599520791,1.9245,2204.0,2203.0,4.53924344]
[1750599520988,0.55,2203.8,2202.4,4.54030559]
[1750599521187,12.642,2203.7,2202.2,4.54091363]
[1750599521407,1.6306,2203.9,2202.1,0.04539814]
[1750599521408,12.64,2203.6,2202.1,10.0]
[1750599521604,0.55,2203.4,2202.2,4.54091363]
[1750599521805,0.55,2203.2,2202.4,4.54029544]
[1750599522004,0.55,2203.0,2202.1,0.37908478]
[1750599522216,12.637,2202.9,2202.2,4.54074082]
[1750599522534,12.636,2202.8,2202.2,0.37906757]
[1750599522743,6.72062267,2202.7,2202.2,0.37906757]
[1750599523052,4.11626227,2202.7,2202.2,0.37906757]
[1750599523258,0.55,2202.5,2202.2,0.37906757]
[1750599523545,10.904,2202.4,2202.2,0.37906757]
[1750599523714,12.633,2202.3,2202.2,0.37906757]
[1750599524048,11.454,2202.3,2202.2,0.37906757]
[1750599524345,24.086,2202.3,2202.2,0.37906757]
[1750599524857,24.086,2202.3,2201.0,4.54326159]
[1750599524858,0.55,2202.0,2201.3,4.54275607]
[1750599525161,1.5387,2202.1,2202.0,4.54132606]
[1750599525308,12.628,2201.9,2201.0,4.54334349]
[1750599525512,1.5387,2202.1,2202.0,4.54132606]
[1750599525753,1.5387,2203.1,2202.5,4.54029511]
[1750599525904,1.5387,2203.1,2203.0,4.53926463]
[1750599526240,10.904,2203.3,2203.2,4.53885257]
[1750599526615,10.904,2203.3,2203.2,14.53885257]
[1750599527360,10.907,2204.1,2203.9,4.53741095]
[1750599527644,10.907,2204.1,2204.0,4.53718649]
[1750599527950,1.275,2204.9,2204.8,4.53555878]
[1750599527951,10.907,2204.9,2204.8,4.53555878]
[1750599528283,23.525,2204.9,2204.8,4.53555878]
[1750599528611,23.83963928,2204.9,2204.8,4.53555878]
[1750599528908,23.525,2204.9,2204.8,4.53555878]
[1750599529103,10.907,2204.9,2204.8,4.53555878]
[1750599529311,10.907,2204.9,2204.8,14.53555878]
[1750599530086,1.5258,2204.8,2203.4,4.53844059]
[1750599530358,0.55,2204.6,2203.3,1.5111]
[1750599530559,0.55,2204.6,2202.7,1.5111]
[1750599530725,0.55,2204.4,2203.8,4.53746488]
[1750599530914,0.55,2204.4,2202.7,1.5111]
[1750599531115,0.55,2203.9,2202.6,4.54002261]
[1750599531316,0.55,2203.7,2202.3,0.45393245]
[1750599531515,0.55,2203.5,2203.0,4.53914251]
[1750599531716,1.5258,2203.4,2201.8,4.54163777]
[1750599531916,0.55,2203.3,2202.5,4.54024965]
[1750599532133,0.55,2203.3,2201.5,1.5111]
[1750599532348,0.55,2203.3,2202.3,4.54057201]
[1750599532551,0.55,2203.3,2202.0,4.54113297]
[1750599532552,0.55,2203.0,2202.0,4.54113297]
[1750599532716,0.55,2202.4,2201.8,4.54170001]
[1750599532926,0.55,2202.0,2200.8,4.54380225]
[1750599533263,6.06696114,2202.1,2201.1,4.54308155]
[1750599533264,12.596,2201.9,2201.1,4.54308155]
[1750599533462,1.5258,2202.1,2200.4,0.44525974]
[1750599533616,13.144,2202.0,2200.3,1.5111]
[1750599533818,4.5391296,2203.1,2200.3,1.5111]
[1750599533819,1.5258,2202.6,2202.5,4.54029511]
[1750599534045,12.4298,2203.1,2202.4,4.5404552]
[1750599534257,1.24298,2203.0,2202.4,4.54048947]
[1750599534558,12.4298,2203.1,2201.6,10.0]
[1750599534864,12.4298,2203.1,2202.1,4.54103462]
[1750599535153,24.40814384,2203.0,2202.6,4.53989926]
[1750599535361,24.40814384,2203.0,2202.4,4.54044752]
[1750599535528,1.5258,2202.8,2201.0,0.44621329]
[1750599535727,0.55,2202.6,2201.5,4.54217445]
[1750599535937,0.55,2202.6,2202.1,4.54097455]
[1750599536119,0.55,2202.6,2200.8,1.5111]
[1750599536318,0.55,2202.6,2201.1,4.54318295]
[1750599536564,0.55,2201.5,2199.9,4.54555081]
[1750599536854,24.037,2201.4,2201.3,4.54277018]
[1750599537172,23.487,2201.4,2201.3,4.54277018]
[1750599537375,0.55,2201.3,2201.2,4.54297655]
[1750599537536,0.55,2201.3,2200.9,4.54347773]
[1750599537737,0.55,2201.3,2199.8,4.54585899]
[1750599537738,2.9537,2201.3,2199.6,4.54607696]
[1750599538048,0.55,2200.3,2198.1,4.54934038]
[1750599538259,5.09589334,2199.8,2199.0,4.5473979]
[1750599538467,0.55,2199.8,2197.9,0.2288646]
[1750599538665,1.6263,2199.9,2197.9,0.2288646]
[1750599538666,1.6263,2199.5,2197.9,0.2288646]
[1750599538835,10.909,2199.4,2198.9,4.54754778]
[1750599539034,10.909,2199.4,2197.9,4.77856408]
[1750599539035,12.576,2199.3,2197.9,4.77856408]
[1750599539251,10.909,2199.4,2199.3,4.54690128]
[1750599539536,11.27614384,2199.4,2197.9,0.2288646]
[1750599539773,0.55,2199.2,2197.9,0.2288646]
[1750599539937,0.55,2199.0,2198.0,4.54959053]
[1750599540138,12.93814384,2198.9,2198.3,4.54896965]
[1750599540337,0.91714384,2198.8,2198.6,4.54831892]
[1750599540578,2.1763,2198.6,2197.9,0.2288646]
[1750599540741,0.55,2198.4,2197.9,0.2288646]
[1750599540937,0.36714384,2198.7,2198.1,4.54937762]
[1750599541186,0.36714384,2198.7,2198.6,4.54834894]
[1750599541338,10.915,2199.6,2199.5,4.54648783]
[1750599541539,10.915,2200.7,2199.8,4.5458678]
[1750599541754,10.915,2200.7,2200.1,0.5]
[1750599542075,10.915,2200.7,2200.6,5.04421521]
[1750599542461,12.57,2201.4,2201.1,0.5]
[1750599542643,10.915,2201.5,2201.3,4.54277018]
[1750599542838,10.915,2201.4,2200.1,0.5]
[1750599543076,4.54297655,2201.2,2199.4,0.5]
[1750599543260,0.55,2201.2,2199.9,4.54548486]
[1750599543579,0.55,2200.8,2199.7,0.5]
[1750599543778,0.55,2201.0,2200.4,4.54462824]
[1750599543981,0.55,2201.0,2199.2,4.54702853]
[1750599543982,0.55,2200.5,2198.7,0.5]
[1750599544167,0.55,2200.3,2199.5,4.54628664]
[1750599544344,1.055,2200.4,2198.8,0.5]
[1750599544345,0.55,2200.1,2199.6,4.54614744]
[1750599544540,10.916,2200.1,2199.4,0.5]
[1750599544757,23.478,2200.1,2199.7,0.5]
[1750599544980,0.55,2200.0,2198.3,0.5]
[1750599545283,10.55,2199.6,2198.4,4.54876273]
[1750599545486,0.55,2199.6,2198.4,4.54876273]
[1750599545784,0.55,2199.2,2198.4,4.54870559]
[1750599545987,0.55,2199.0,2198.6,4.54819946]
[1750599546288,5.0977023,2199.0,2197.9,0.2288646]
[1750599546472,5.09806017,2198.8,2197.9,4.77852626]
[1750599546673,3.47628505,2198.9,2197.9,0.2288646]
[1750599546674,0.55,2198.4,2197.9,0.2288646]
[1750599546986,1.6447,2198.7,2197.9,0.2288646]
[1750599547189,0.55,2198.6,2197.9,0.2288646]
[1750599547502,10.916,2199.1,2198.4,0.5]
[1750599547654,10.916,2199.1,2198.6,0.5]
[1750599547853,10.916,2199.1,2198.7,0.5]
[1750599548074,10.916,2199.1,2199.0,4.5475216]
[1750599548268,10.916,2199.1,2199.0,5.0475216]
[1750599548451,10.916,2199.1,2198.8,0.5]
[1750599548661,1.6568,2199.0,2198.2,0.5]
[1750599548865,12.551,2199.0,2198.6,0.5]
[1750599549079,12.551,2199.0,2198.9,4.5477284]
[1750599549464,1.43009768,2199.6,2199.5,5.04648783]
[1750599549979,1.43009768,2199.6,2199.5,4.54648783]
[1750599550359,13.97609768,2199.6,2199.5,4.54648783]
[1750599550561,13.97609768,2199.6,2199.5,5.04648783]
[1750599550899,1.43009768,2199.6,2199.5,15.04648783]
[1750599551092,12.543,2200.6,2200.5,4.54442172]
[1750599551292,10.922,2200.7,2200.6,5.04421521]
[1750599551479,14.00216005,2201.5,2201.4,4.54256382]
[1750599551680,1.6568,2202.3,2201.7,0.5]
[1750599551858,1.6568,2202.3,2202.0,0.5]
[1750599552195,1.6568,2202.3,2202.2,4.54091363]
[1750599552699,12.538,2202.3,2201.5,0.5]
[1750599552998,13.7898,2202.2,2201.1,0.5]
[1750599553176,1.2538,2202.2,2201.6,0.5]
[1750599553496,23.453,2202.1,2201.4,0.5]
[1750599553796,23.453,2202.1,2200.9,0.5]
[1750599554000,23.453,2202.1,2200.7,0.5]
[1750599554001,11.5132,2202.0,2200.7,0.5]
[1750599554163,1.5132,2202.0,2200.7,0.5]
[1750599554365,11.468,2201.9,2201.2,0.5]
[1750599554564,12.4312,2202.6,2202.2,5.04084359]
[1750599554799,12.4312,2202.6,2201.1,4.54312693]
[1750599554800,10.918,2203.0,2202.0,0.5]
[1750599554982,2.49572,2202.9,2202.5,4.54022712]
[1750599555183,2.49572,2202.9,2202.4,5.04034893]
[1750599555386,2.49572,2202.9,2202.2,0.5]
[1750599555591,7.03519087,2202.9,2202.2,0.5]
[1750599555766,7.03519087,2202.9,2201.7,0.5]
[1750599555767,0.55,2202.8,2201.7,0.5]
[1750599555962,12.825572,2202.7,2202.1,0.5]
[1750599556299,0.55,2202.6,2201.9,4.54139772]
[1750599556492,4.53967677,2202.8,2202.1,0.5]
[1750599556799,0.55,2202.4,2201.6,0.5]
[1750599557001,0.55,2202.2,2201.5,0.5]
[1750599557190,0.55,2201.6,2201.1,0.5]
[1750599557386,1.5132,2201.3,2200.8,0.5]
[1750599557595,0.55,2201.1,2200.8,0.5]
[1750599557822,0.55,2201.1,2200.7,4.54392303]
[1750599557823,1.5132,2201.3,2200.7,0.5]
[1750599558116,0.55,2201.1,2200.6,0.5]
[1750599558263,0.55,2201.1,2200.6,5.04418356]
[1750599558464,1.8561,2201.1,2200.6,0.5]
[1750599558664,1.8561,2201.1,2200.7,4.54388935]
[1750599559005,12.507,2201.5,2201.4,0.5]
[1750599559304,0.55,2201.4,2200.6,0.5]
[1750599559509,0.55,2201.0,2200.2,4.54484785]
[1750599559678,0.55,2201.0,2200.1,0.5]
[1750599559880,1.5281,2199.4,2197.8,1.365987]
[1750599560101,4.54507492,2200.2,2197.3,6.17403854]
[1750599560102,0.55,2199.0,2197.3,6.17403854]
[1750599560279,4.54877389,2198.4,2197.5,4.55056392]
[1750599560470,0.55,2198.2,2197.0,4.55150372]
[1750599560673,1.5281,2198.8,2196.9,4.55182898]
[1750599560923,10.916,2198.9,2198.0,1.6231]
[1750599561223,13.049,2198.8,2197.5,4.5505005]
[1750599561368,10.916,2198.9,2198.1,4.54938355]
[1750599561575,10.916,2198.9,2198.8,4.54793523]
[1750599561908,10.916,2198.9,2198.4,1.6231]
[1750599562325,12.495,2198.8,2197.9,1.8519646]
[1750599562618,12.495,2198.7,2198.3,4.54881086]
[1750599562919,10.916,2198.9,2198.0,4.59508184]
[1750599563099,10.916,2198.9,2198.8,4.54793523]
[1750599563300,10.916,2198.9,2198.1,0.64470464]
[1750599563612,10.916,2198.9,2198.8,4.54793523]
[1750599563984,23.409,2198.9,2198.8,4.54793523]
[1750599564391,10.916,2198.9,2198.8,4.54793523]
[1750599564602,23.408,2198.9,2198.8,4.54793523]
[1750599564971,10.916,2198.9,2198.8,4.54793523]
[1750599566416,23.407,2199.5,2198.9,11.5863]
[1750599566575,10.921,2199.5,2199.4,4.54669455]
[1750599567175,12.483,2199.6,2199.5,4.54648783]
[1750599567388,7.2823,2200.5,2200.3,4.54463679]
[1750599567712,5.678,2200.5,2200.4,4.54462824]
[1750599568012,1.5721,2201.6,2200.4,0.04544795]
[1750599568181,5.679,2201.7,2200.6,4.54421521]
[1750599568182,23.401,2201.5,2200.6,4.54421521]
[1750599568507,10.921,2201.5,2200.4,10.0]
[1750599568705,1.5721,2201.3,2200.7,4.54388566]
[1750599568921,1.5721,2201.3,2200.0,4.54545454]
[1750599569132,0.55,2201.0,2199.9,1.5863]
[1750599569315,0.55,2201.2,2200.1,4.54524794]
[1750599569478,0.55,2201.0,2200.5,4.54433854]
[1750599569674,0.55,2201.2,2200.5,4.54434842]
[1750599570120,1.5721,2201.3,2201.2,4.54297655]
[1750599570423,12.471,2201.3,2200.1,10.0]
[1750599570584,12.471,2201.3,2201.2,4.54295441]
[1750599570918,12.469,2201.3,2200.0,4.54545454]
[1750599571219,12.469,2201.3,2200.6,4.54407471]
[1750599571423,12.469,2201.3,2199.3,4.54676043]
[1750599571424,4.5435958,2200.9,2199.3,6.16212537]
[1750599571639,12.466,2200.8,2200.1,4.54523342]
[1750599571922,0.55,2200.7,2200.2,4.54492541]
[1750599572130,0.55,2200.7,2200.3,4.54481271]
[1750599572426,0.55,2200.7,2200.3,4.5447921]
[1750599572727,1.6562,2201.1,2200.7,4.54389673]
[1750599572931,1.6562,2201.1,2198.6,4.54830675]
[1750599573229,1.5319,2200.8,2200.1,4.54513272]
[1750599573519,13.007,2200.7,2199.4,0.04545986]
[1750599573820,10.919,2200.6,2199.5,4.54647824]
[1750599574028,10.919,2200.6,2200.4,4.54451966]
[1750599574196,12.454,2200.5,2200.4,4.54443198]
[1750599574598,10.919,2200.6,2200.5,4.54442172]
[1750599574791,0.55,2200.5,2199.4,10.0]
[1750599574999,12.451,2200.4,2200.3,4.54483479]
[1750599575179,10.919,2200.6,2199.7,4.54607446]
[1750599575180,10.919,2200.6,2200.4,4.54462824]
[1750599575377,10.919,2200.6,2200.5,4.54442172]
[1750599575709,23.367,2200.6,2200.5,4.54442172]
[1750599575916,5.2405069,2202.9,2201.6,4.54215116]
[1750599575917,1.5319,2201.8,2201.6,4.54215116]
[1750599576077,10.92,2201.8,2201.7,4.54194486]
[1750599577115,10.92,2201.8,2201.7,14.54194486]
[1750599577422,1.5319,2203.0,2202.9,4.53947069]
[1750599577714,12.4489,2203.0,2202.9,4.53947069]
[1750599577915,24.8869,2203.0,2202.9,4.53947069]
[1750599578223,23.352,2203.0,2202.9,4.53947069]
[1750599578378,10.917,2203.8,2202.7,16.10225018]
[1750599578574,12.434,2203.7,2202.7,6.10234272]
[1750599578774,1.5456,2203.6,2202.5,4.54016144]
[1750599578974,0.55,2203.4,2201.7,1.5625]
[1750599579207,0.55,2203.4,2200.7,4.54391548]
[1750599579208,0.55,2202.6,2201.2,1.5625]
[1750599579419,1.5456,2203.5,2203.4,4.53844059]
[1750599579679,1.5456,2203.5,2201.5,1.5625]
[1750599579680,13.9746,2203.5,2202.6,4.54004483]
[1750599579910,13.9746,2203.5,2202.5,4.54009643]
[1750599580113,0.55,2203.4,2202.2,0.44744143]
[1750599580292,12.978,2203.3,2203.2,4.53870041]
[1750599580611,12.426,2203.3,2202.4,4.54050127]
[1750599580813,0.55,2203.2,2203.1,4.53888476]
[1750599581177,0.55,2203.2,2201.5,1.5805]
[1750599581489,0.55,2203.2,2202.1,4.54111984]
[1750599581818,0.55,2203.4,2203.3,4.53864657]
[1750599582117,23.884,2203.4,2202.6,4.53995798]
[1750599582428,23.884,2203.4,2201.5,1.5805]
[1750599582589,0.55,2203.0,2201.5,1.5805]
[1750599582790,0.55,2203.0,2201.8,4.54173857]
[1750599583008,0.55,2203.0,2202.0,4.54132606]
[1750599583179,0.55,2203.0,2201.0,0.45299067]
[1750599583378,0.55,2202.5,2201.8,4.5415907]
[1750599583703,6.18054482,2202.2,2201.4,4.5424106]
[1750599583875,0.55,2202.1,2200.5,4.54442172]
[1750599584224,0.55,2201.9,2200.5,4.54442172]
[1750599584517,0.55,2202.0,2201.7,4.54182531]
[1750599584810,0.55,2201.8,2201.5,4.54215836]
[1750599585010,0.55,2201.8,2200.9,4.5435958]
[1750599585211,1.8454,2201.8,2201.4,4.54243394]
[1750599585385,1.8454,2201.8,2200.7,4.54400872]
[1750599585710,1.8454,2201.8,2200.5,4.54442172]
[1750599586014,1.8454,2201.8,2201.3,4.5427392]
[1750599586416,1.8454,2201.8,2200.9,4.54353986]
[1750599586588,1.8454,2201.8,2198.4,2.46309398]
[1750599586589,10.912,2202.4,2202.3,4.54070744]
[1750599586789,12.5525,2202.9,2201.7,4.54194486]
[1750599587112,12.5525,2202.9,2201.4,1.5805]
[1750599587113,12.5525,2202.9,2202.8,4.53967677]
[1750599587315,24.9475,2202.9,2202.8,4.53967677]
[1750599587885,24.9475,2202.9,2202.5,4.54025875]
[1750599588078,5.08999486,2202.7,2201.5,4.54235748]
[1750599588378,0.55,2202.3,2200.8,4.54380225]
[1750599588688,0.55,2201.9,2200.8,4.54380225]
[1750599588888,0.55,2201.7,2200.7,4.54400872]
[1750599589090,0.55,2201.7,2201.5,4.54221078]
[1750599589300,0.55,2201.7,2201.6,4.54215116]
[1750599589501,12.936,2201.7,2201.6,4.54215116]
[1750599589716,12.934,2201.7,2201.6,4.54215116]
[1750599589904,2.9347,2201.7,2200.6,4.54420088]
[1750599590104,2.1729,2201.5,2200.1,1.6404]
[1750599590307,0.55,2201.1,2200.1,4.54516339]
[1750599590493,5.09256651,2201.4,2200.0,4.54536756]
[1750599590805,5.09256651,2201.4,2199.8,9.0917356]
[1750599590806,0.55,2201.4,2199.8,10.0]
[1750599591113,12.381,2201.3,2201.2,4.54294121]
[1750599591279,0.55,2201.2,2201.0,4.54331033]
[1750599591480,1.8981,2201.2,2200.8,4.54368196]
[1750599591717,1.8981,2201.2,2200.7,4.54387549]
[1750599591915,1.8981,2201.2,2199.7,1.6404]
[1750599592115,1.8981,2201.2,2199.8,4.5458678]